Cogmind - Beta 13 @@@ ROGUE MODE // 2024.04.12 @ 01:45:52 Player: Aeon PSR Result: Destroyed by H-66 Slayer with Heavy Assault Rifle Performance ------------- Evolutions (4) 2000 Regions Visited (9) 1800 Robots Destroyed (78) 390 Value Destroyed (2940) 2940 Prototype IDs (16) 320 Alien Tech Used (0) 0 Bonus (640) 640 TOTAL SCORE: 8090 Bonus ------- Follower Combat Kills 340 Met Data Miner 300 Cogmind --------- Core Integrity 0/850 Matter 89/300 Energy 100/100 System Corruption 1% Temperature Cool (0) Movement Walking (260) Ox2 Location -6/Factory Parts ------- > --- POWER (1) -------- (None) > --- PROPULSION (4) --- Carbon-fiber Leg > --- UTILITY (7) ------ High-capacity Storage Unit Advanced Signal Interpreter Improved Melee Analysis Suite Improved Melee Analysis Suite > --- WEAPON (3) ------- (None) > --- INVENTORY (20) --- Cooled Deuterium Engine Light Fission Core Structural Scanner Improved Terrain Scanner Stasis Canceller Improved Medium Armor Plating Heavy Proton Missile Launcher Remote Datajack Katana Katana Chainsword Chainsword Chainsword Peak State ------------ > --- POWER ------------ Fusion Compressor > --- PROPULSION ------- Armored Huge Wheel > --- UTILITY ---------- Improved Heat Sink High-capacity Storage Unit Advanced Signal Interpreter Improved Melee Analysis Suite Propulsion Shielding Improved Medium Armor Plating Improved Recalibrator > --- WEAPON ----------- Heavy Proton Missile Launcher Chainsword Chainsword > --- INVENTORY -------- High-capacity Battery Compact Battery Structural Scanner Improved Sensor Array Improved Terrain Scanner Hardened Medium Armor Plating Improved Field Recycling Unit Heavy Proton Missile Launcher Heavy Proton Missile Launcher Heavy Missile Launcher Precision Rocket Launcher Precision Rocket Launcher Smartbomb Launcher Remote Datajack Remote Datajack Katana Katana Chainsword Chainsword [Rating: 60] Favorites ----------- Power Ion Engine Engine Ion Engine Power Core Light Nuclear Core Propulsion Armored Wheel Treads Advanced Treads Leg Carbon-fiber Leg Wheel Armored Wheel Hover Unit Gravmag System Utility High-capacity Storage Unit Device Improved Sensor Array Storage High-capacity Storage Unit Processor Improved Signal Interpreter Hackware Hacking Suite Protection Improved Light Armor Plating Weapon Chainsword Ballistic Gun Assault Rifle Launcher Heavy Missile Launcher Slashing Weapon Chainsword Build | -11 -10 -9 -9 -8 -7 -7 -7 -6 -6 ------- Run | Yrd Mat Mat Min Mat Fac Low Dat Pro Fac Slots Evolved 8 | . . 2 . 2 2 . . . 2 Power . | . . . . . . . . . . Propulsion 2 | . . . . 1 1 . . . . Utility 5 | . . 2 . 1 1 . . . 1 Weapon 1 | . . . . . . . . . 1 Parts Attached 130 | 6 8 9 7 13 26 . . 38 23 Power 12 | 1 . 1 1 1 3 . . 3 2 Engine 8 | 1 . 1 1 1 2 . . 1 1 Core 4 | . . . . . 1 . . 2 1 Reactor . | . . . . . . . . . . Propulsion 27 | 2 3 3 1 3 7 . . 6 2 Treads 7 | 2 1 . . . 2 . . 2 . Leg 2 | . . . . . . . . 1 1 Wheel 17 | . 2 3 1 3 4 . . 3 1 Hover 1 | . . . . . 1 . . . . Flight . | . . . . . . . . . . Utility 52 | 1 3 3 3 6 10 . . 13 13 Device 16 | . . 2 . 2 3 . . 5 4 Storage 6 | 1 1 . . . 1 . . 3 . Processor 6 | . . . . 1 2 . . 1 2 Hackware 1 | . . . . . 1 . . . . Protection 23 | . 2 1 3 3 3 . . 4 7 Artifact . | . . . . . . . . . . Weapon 39 | 2 2 2 2 3 6 . . 16 6 Energy Gun . | . . . . . . . . . . Energy Cannon . | . . . . . . . . . . Ballistic Gun 9 | 2 1 1 2 2 1 . . . . Ballistic Cannon . | . . . . . . . . . . Launcher 17 | . 1 1 . 1 1 . . 9 4 Special Weapon . | . . . . . . . . . . Impact Weapon . | . . . . . . . . . . Slashing Weapon 13 | . . . . . 4 . . 7 2 Piercing Weapon . | . . . . . . . . . . Special Melee Weapon . | . . . . . . . . . . Unidentified Prototypes 3 | . . . . . . . . 3 . Parts Lost 43 | . 1 2 7 1 6 . . 16 10 Power 3 | . . . 1 . . . . 2 . Propulsion 12 | . . 1 1 1 3 . . 5 1 Utility 19 | . . 1 3 . 3 . . 7 5 Weapon 9 | . 1 . 2 . . . . 2 4 Highest Loss Streak 8 | . 1 1 4 1 6 . . 5 8 To Critical Strikes 1 | . . 1 . . . . . . . Average Slot Usage (%) 87 | . 98 99 93 99 90 100 100 79 75 Engine 5 | . 14 10 8 9 6 . . . 3 Core 2 | . . . . . . 7 7 5 2 Treads 3 | . 16 . . . 8 7 7 1 . Wheel 14 | . 11 21 21 26 17 23 23 12 5 Device 9 | . . 22 15 13 7 15 15 6 10 Storage 8 | . 14 11 11 9 7 7 7 7 6 Processor 8 | . . . . 4 10 7 7 10 18 Hackware 2 | . . . . . 2 7 7 6 . Protection 9 | . 12 11 14 18 11 7 7 6 8 Ballistic Gun 5 | . 17 20 17 16 . . . . . Launcher 2 | . 10 1 4 1 1 . . . 2 Slashing Weapon 9 | . . . . . 12 15 15 13 15 Naked Turns . | . . . . . . . . . . Heaviest Build 224 | 13 57 61 65 75 83 59 59 224 87 Greatest Support 60 | 40 40 28 26 36 42 34 34 60 28 Greatest Overweight (x) 23 | . 2 3 4 2 6 1 1 17 23 Average Overweight (x) 2 | . . 2 1 1 1 1 1 3 2 Largest Inventory Capacity 35 | 8 20 20 20 20 20 20 20 35 20 Average Capacity 21 | 6 12 20 20 20 20 20 20 26 20 Most Carried 28 | 5 13 16 16 20 20 20 20 28 20 Average Carried 17 | 2 8 13 13 18 18 20 20 19 17 Final Capacity 20 | 8 20 20 20 20 20 20 20 20 20 Final Carried 20 | 4 13 16 15 20 20 20 20 20 13 Class Distribution -------------------- 56% | Mutant 23% | Gladiator 16% | Hauler-Mutant Dominant Class ---------------- Mutant | -10/Materials Mutant | -9/Materials Mutant | -9/Mines Mutant | -8/Materials Mutant | -7/Factory Mutant | -7/Lower Caves Mutant | -7/Data Miner Hauler-Mutant | -6/Proximity Caves Gladiator | -6/Factory Resources | -11 -10 -9 -9 -8 -7 -7 -7 -6 -6 ----------- Run | Yrd Mat Mat Min Mat Fac Low Dat Pro Fac Matter Collected 2141 | 232 195 181 267 90 262 20 . 584 310 Remotely . | . . . . . . . . . . Salvage Created 3043 | . 130 268 323 186 541 . . 758 837 Parts 142 | . 13 19 9 18 29 . . 33 21 Haulers Intercepted . | . . . . . . . . . . Recyclers Shooed 2 | . . . . . . . . . 2 Parts Field Recycled 43 | . . . . 32 . . . . 11 Retrieved Matter 386 | . . . . 206 . . . . 180 Parts Self-Destructed 27 | . . . . . . . . 27 . Prevented . | . . . . . . . . . . Kills | -11 -10 -9 -9 -8 -7 -7 -7 -6 -6 ------- Run | Yrd Mat Mat Min Mat Fac Low Dat Pro Fac Combat Hostiles Destroyed 74 | . 5 8 10 3 15 . . 17 16 Melee 24 | . . . . . 8 . . 10 6 Guns 15 | . 3 6 5 1 . . . . . AOE 35 | . 2 2 5 2 7 . . 7 10 Classes Destroyed 18 | . 4 2 2 1 2 . . 6 1 Builder 1 | . . . . 1 . . . . . Tunneler 1 | . . . 1 . . . . . . Recycler 5 | . . 1 2 . 1 . . . 1 Minesweeper 1 | . . . . . . . . 1 . Mechanic 2 | . . . . . . . . 1 1 Operator 2 | . 1 . . . 1 . . . . Watcher 2 | . 1 . . 1 . . . . . Swarmer 17 | . 3 6 . . 7 . . 1 . Grunt 24 | . 2 . . . 3 . . 7 12 Brawler 1 | . . . . . . . . 1 . Duelist 3 | . . . . . . . . 2 1 Protector 2 | . . . . . . . . 2 . Sentry 10 | . . 2 . 3 1 . . 3 1 Demolisher 1 | . . . . . . . . 1 . Specialist 2 | . . . . . . . . . 2 Hunter 1 | . . . . . 1 . . . . Programmer 3 | . . . . . 3 . . . . Assembled 10 | . . . 10 . . . . . . Best Kill Streak 11 | . 3 4 8 4 4 . . 6 11 Combat Bots Only 10 | . 3 4 5 2 4 . . 6 10 Max Kills in Single Turn 5 | . 2 2 3 2 3 . . 2 5 Gunslinging . | . . . . . . . . . . Exploded 5 | . 2 1 2 2 3 . . 2 5 Melee 1 | . . . . . 1 . . 1 1 Uniques/NPCs Destroyed . | . . . . . . . . . . Combat | -11 -10 -9 -9 -8 -7 -7 -7 -6 -6 -------- Run | Yrd Mat Mat Min Mat Fac Low Dat Pro Fac Hostile Shots Fired 631 | . 26 47 39 12 168 . . 155 184 Missed 186 | . 5 11 10 1 51 . . 45 63 Damage Taken 8012 | . 254 393 753 210 1666 . . 2094 2642 Core 1579 | . 15 64 110 12 191 . . 337 850 Absorbed by Shields 274 | . . . . 62 61 . . 151 . Redirected to Shielding 50 | . . . . . . . . 23 27 Regen/Repaired (Parts) 533 | . . 89 . . 207 . . . 237 Core Remaining (%) 74 | 100 94 . 56 97 . . . 24 . Volleys Fired 98 | . 17 21 26 11 6 . . 9 8 Largest 2 | . 2 2 2 2 1 . . 2 2 Hottest 86 | . 50 43 56 56 39 . . 78 86 Shots Fired 165 | . 25 39 51 21 6 . . 12 11 Gun 119 | . 19 36 46 18 . . . . . Cannon . | . . . . . . . . . . Launcher 46 | . 6 3 5 3 6 . . 12 11 Special . | . . . . . . . . . . Kinetic 119 | . 19 36 46 18 . . . . . Thermal . | . . . . . . . . . . Explosive 36 | . 6 . . 3 6 . . 12 9 Electromagnetic 10 | . . 3 5 . . . . . 2 Robot Hit Streak 8 | . 4 8 8 6 8 . . 6 8 Robot Miss Streak 4 | . 4 3 4 2 2 . . 1 2 Penetration Max . | . . . . . . . . . . Secondary Targets 4 | . 1 2 1 . . . . . . Max Gunslinging Chain 1 | . 1 1 1 . . . . . . Shots Hit Robots 200 | . 14 23 31 16 34 . . 45 37 Core Hits 147 | . 10 14 23 13 18 . . 34 35 Critical Kills 1 | . 1 . . . . . . . . Critical Parts Destroyed 1 | . . . 1 . . . . . . Critical Strikes 14 | . 1 . 1 . 5 . . 2 5 Destroy 2 | . 1 . 1 . . . . . . Sever 12 | . . . . . 5 . . 2 5 Melee Attacks 126 | . . . . . 45 . . 47 34 Impact . | . . . . . . . . . . Slashing 126 | . . . . . 45 . . 47 34 Piercing . | . . . . . . . . . . Sneak Attacks 13 | . . . . . 3 . . 8 2 Combat Hostiles 1 | . . . . . 1 . . . . Follow-up Attacks 10 | . . . . . 3 . . 4 3 Damage Inflicted 9159 | . 345 306 505 339 2124 . . 2754 2786 Guns 878 | . 142 210 314 212 . . . . . Cannons . | . . . . . . . . . . Explosions 4409 | . 201 96 191 127 924 . . 1219 1651 Melee 3870 | . . . . . 1200 . . 1535 1135 Ramming 2 | . 2 . . . . . . . . Kinetic 878 | . 142 210 314 212 . . . . . Thermal 220 | . . . . . 220 . . . . Explosive 3733 | . 201 . . 104 704 . . 1219 1505 Electromagnetic 456 | . . 96 191 23 . . . . 146 Impact . | . . . . . . . . . . Slashing 3870 | . . . . . 1200 . . 1535 1135 Piercing . | . . . . . . . . . . Highest Corruption 3 | . . . 1 1 3 3 3 3 1 Average Corruption 2 | . . . 1 1 2 3 3 3 1 Corruption Purged . | . . . . . . . . . . Corruption Blocked . | . . . . . . . . . . Effects 69 | . . . 1 2 7 3 1 50 5 Message Errors 18 | . . . . 1 1 . . 12 4 Matter Fused 16 | . . . 1 . . 1 . 13 1 Heat Flow Errors 7 | . . . . . 1 . . 6 . Energy Discharges 11 | . . . . . 3 1 . 7 . Parts Fused 1 | . . . . . . . . 1 . Data Loss (minor) 11 | . . . . . 2 1 1 7 . Data Loss (major) 4 | . . . . . . . . 4 . Weapon Failures 1 | . . . . 1 . . . . . Overload Shots . | . . . . . . . . . . Overflow Damage 711 | . . . 14 5 336 . . 232 124 Projectiles . | . . . . . . . . . . Explosions 380 | . . . 14 5 247 . . 75 39 Melee 331 | . . . . . 89 . . 157 85 Knockbacks . | . . . . . . . . . . Impact . | . . . . . . . . . . Kinetic . | . . . . . . . . . . Secondary . | . . . . . . . . . . Self-Inflicted Damage 903 | . 57 18 82 115 220 . . 139 272 Shots 33 | . 3 2 5 4 5 . . 5 9 Rammed 1 | . 1 . . . . . . . . Targets Rammed 1 | . 1 . . . . . . . . Kicked . | . . . . . . . . . . Crushed . | . . . . . . . . . . Highest Temperature 266 | . 22 21 18 45 176 . . 266 30 Average Temperature 43 | . 9 9 7 12 58 . . 80 17 Received Heat Transfer 1427 | . 54 81 20 36 141 . . 435 660 Siege Activations . | . . . . . . . . . . Robots Corrupted . | . . . . . . . . . . Combat Hostiles . | . . . . . . . . . . Parts Fried 1 | . . . . . . . . . 1 Impact Corruptions . | . . . . . . . . . . Robots Melted . | . . . . . . . . . . Combat Hostiles . | . . . . . . . . . . Parts Melted . | . . . . . . . . . . Heat Transferred 100 | . . . . . 100 . . . . Parts Sabotaged . | . . . . . . . . . . Parts Stolen . | . . . . . . . . . . Parts Stripped . | . . . . . . . . . . Power Chain Reactions . | . . . . . . . . . . Alert | -11 -10 -9 -9 -8 -7 -7 -7 -6 -6 ------- Run | Yrd Mat Mat Min Mat Fac Low Dat Pro Fac Peak Influence 364 | . 142 140 51 204 364 . . . 295 Initial 50 | . . . 46 . 1 . . . 50 Average 97 | . 51 55 26 101 199 . . . 88 Maximum Alert Level 1 | . . . . 1 1 . . . 1 Low Security (%) 83 | 100 100 100 100 80 52 . . . 86 Level 1 16 | . . . . 19 47 . . . 13 Level 2 . | . . . . . . . . . . Level 3 . | . . . . . . . . . . Level 4 . | . . . . . . . . . . Level 5 . | . . . . . . . . . . High Security . | . . . . . . . . . . Max Security . | . . . . . . . . . . Squads Dispatched 11 | . . . . 2 4 . . 1 4 Investigation 3 | . . . . . 1 . . . 2 Extermination 2 | . . . . . 2 . . . . Reinforcement 5 | . . . . 2 1 . . . 2 Assault 1 | . . . . . . . . 1 . Garrison . | . . . . . . . . . . Intercept . | . . . . . . . . . . Searches Triggered . | . . . . . . . . . . Construction Impeded . | . . . . . . . . . . Haulers Reinforced . | . . . . . . . . . . Active Scanning Responses . | . . . . . . . . . . Cargo Convoy Interrupts . | . . . . . . . . . . Stealth | -11 -10 -9 -9 -8 -7 -7 -7 -6 -6 --------- Run | Yrd Mat Mat Min Mat Fac Low Dat Pro Fac Distress Signals 19 | . . 1 . 1 . . . 17 . Communications Jammed . | . . . . . . . . . . Distress Signals . | . . . . . . . . . . Times Spotted 117 | . 14 12 13 6 18 . . 31 23 Peak Tracking Total 10 | . 3 4 8 3 4 . . 8 10 Tactical Retreats 10 | . . 1 3 . 1 . . 2 3 Traps | -11 -10 -9 -9 -8 -7 -7 -7 -6 -6 ------- Run | Yrd Mat Mat Min Mat Fac Low Dat Pro Fac Traps Triggered 1 | . . . . . . . . 1 . Indirectly . | . . . . . . . . . . Trap Hack Attempts . | . . . . . . . . . . Triggered . | . . . . . . . . . . Disarmed . | . . . . . . . . . . Reprogrammed . | . . . . . . . . . . Reused . | . . . . . . . . . . Traps Extracted . | . . . . . . . . . . Installed . | . . . . . . . . . . Triggered 2 | . . . . . . . . 2 . Machines | -11 -10 -9 -9 -8 -7 -7 -7 -6 -6 ---------- Run | Yrd Mat Mat Min Mat Fac Low Dat Pro Fac Machines Disabled 10 | . . . . 3 3 . . 3 1 Max in Single Turn 2 | . . . . 2 1 . . 1 1 Garrison Access 1 | . . . . . . . . . 1 Machines Repaired . | . . . . . . . . . . Machines Dismantled . | . . . . . . . . . . Machines Sabotaged . | . . . . . . . . . . Overloaded Fab Kills . | . . . . . . . . . . Hacking | -11 -10 -9 -9 -8 -7 -7 -7 -6 -6 --------- Run | Yrd Mat Mat Min Mat Fac Low Dat Pro Fac Machines Accessed 23 | . 6 2 . 2 4 . 4 . 5 Terminals 11 | . 4 1 . 2 2 . . . 2 Fabricators . | . . . . . . . . . . Repair Stations 4 | . . 1 . . 2 . . . 1 Recycling Units 3 | . 2 . . . . . . . 1 Scanalyzers . | . . . . . . . . . . Garrison Access 1 | . . . . . . . . . 1 Total Hacks 78 | . 8 9 . 3 14 . 28 . 16 Successful 59 | . 8 6 . 1 9 . 28 . 7 Failed 19 | . . 3 . 2 5 . . . 9 Catastrophic . | . . . . . . . . . . Database Lockouts . | . . . . . . . . . . Manual 1 | . . . . . . . . . 1 Terminals 23 | . 5 4 . 3 6 . . . 5 Fabricators . | . . . . . . . . . . Repair Stations 18 | . . 5 . . 8 . . . 5 Recycling Units 6 | . 3 . . . . . . . 3 Scanalyzers . | . . . . . . . . . . Garrison Access 3 | . . . . . . . . . 3 Terminal Hacks 41 | . 5 2 . 1 3 . 28 . 2 Record 13 | . . 1 . . . . 11 . 1 Part Schematic 10 | . . . . . 1 . 9 . . Robot Schematic 5 | . . . . . . . 5 . . Prototype ID Bank 4 | . 1 . . . . . 3 . . Open DSF 1 | . . . . . 1 . . . . Emergency Access Points 2 | . 1 . . . . . . . 1 Alert Level 2 | . 1 . . 1 . . . . . Dispatch Records 1 | . . . . . 1 . . . . Hauler Manifests 1 | . 1 . . . . . . . . Zone Layout 2 | . 1 1 . . . . . . . Fabricator Hacks . | . . . . . . . . . . Repair Station Hacks 13 | . . 4 . . 6 . . . 3 Scan Component 7 | . . 2 . . 3 . . . 2 Repair 6 | . . 2 . . 3 . . . 1 Recycling Unit Hacks 4 | . 3 . . . . . . . 1 Report Inventory 3 | . 2 . . . . . . . 1 Retrieve Components 1 | . 1 . . . . . . . . Scanalyzer . | . . . . . . . . . . Garrison Access Hacks 1 | . . . . . . . . . 1 Seal Access 1 | . . . . . . . . . 1 Unauthorized Hacks . | . . . . . . . . . . Terminals . | . . . . . . . . . . Fabricators . | . . . . . . . . . . Repair Stations . | . . . . . . . . . . Recycling Units . | . . . . . . . . . . Scanalyzers . | . . . . . . . . . . Garrison Access . | . . . . . . . . . . Data Cores Recovered 2 | . 1 . . . 1 . . . . Used . | . . . . . . . . . . Hacking Detections 12 | . 3 1 . 2 2 . . . 4 Full Trace Events 3 | . . . . . 1 . . . 2 Feedback Events . | . . . . . . . . . . Feedback Blocked . | . . . . . . . . . . Robot Schematics Acquired 5 | . . . . . . . 5 . . Robots Built . | . . . . . . . . . . Authchips . | . . . . . . . . . . Time . | . . . . . . . . . . Total Robot Build Rating . | . . . . . . . . . . Part Schematics Acquired 10 | . . . . . 1 . 9 . . Parts Built . | . . . . . . . . . . Authchips . | . . . . . . . . . . Time . | . . . . . . . . . . Total Part Build Rating . | . . . . . . . . . . Parts Repaired 6 | . . 2 . . 3 . . . 1 Time 198 | . . 52 . . 102 . . . 44 Parts Recycled . | . . . . . . . . . . Recycled Matter . | . . . . . . . . . . Retrieved Matter . | . . . . . . . . . . Retrieved Components 3 | . 3 . . . . . . . . Parts Scanalyzed . | . . . . . . . . . . Part Schematics Acquired . | . . . . . . . . . . Parts Damaged . | . . . . . . . . . . Bothacking | -11 -10 -9 -9 -8 -7 -7 -7 -6 -6 ------------ Run | Yrd Mat Mat Min Mat Fac Low Dat Pro Fac Used RIF Installer . | . . . . . . . . . . Robots Hacked . | . . . . . . . . . . Non-combat . | . . . . . . . . . . Combat . | . . . . . . . . . . Robot Hacks Applied . | . . . . . . . . . . Relay Couplers Released . | . . . . . . . . . . Fabnet Peak Effective % . | . . . . . . . . . . Robots Rewired . | . . . . . . . . . . Allies Hacked . | . . . . . . . . . . Hacks Repelled . | . . . . . . . . . . Allies | -11 -10 -9 -9 -8 -7 -7 -7 -6 -6 -------- Run | Yrd Mat Mat Min Mat Fac Low Dat Pro Fac Total Allies 1 | . . . . . . . . 1 . Largest Group 1 | . . . . . . . . 1 . Highest-Rated Group 96 | . . . . . . . . 96 . Highest-Rated Ally 96 | . . . . . . . . 96 . Total Orders . | . . . . . . . . . . Ally Attacks 52 | . . . . . . . . 52 . Total Damage 1853 | . . . . . . . . 1853 . Kills 9 | . . . . . . . . 9 . Allies Corrupted . | . . . . . . . . . . Allies Melted . | . . . . . . . . . . Intel | -11 -10 -9 -9 -8 -7 -7 -7 -6 -6 ------- Run | Yrd Mat Mat Min Mat Fac Low Dat Pro Fac Robot Analysis Total . | . . . . . . . . . . Derelict Logs Recovered 3 | . . . 1 . . . . 2 . Drone Launches . | . . . . . . . . . . Drone Recoveries . | . . . . . . . . . . Exploration | -11 -10 -9 -9 -8 -7 -7 -7 -6 -6 ------------- Run | Yrd Mat Mat Min Mat Fac Low Dat Pro Fac Turns Passed 7750 | 78 802 683 418 565 1069 166 87 2843 1039 Spaces Moved 4486 | 48 519 373 277 443 578 128 87 1475 558 Core 32 | 12 . . . . . . . 17 3 Treads 342 | 36 274 . . . . . . 32 . Legs 90 | . . . . . . . . 88 2 Wheels 4022 | . 245 373 277 443 578 128 87 1338 553 Hover . | . . . . . . . . . . Flight . | . . . . . . . . . . Fastest Speed 50 | 50 90 120 105 101 97 101 101 100 130 Average Speed 135 | 132 141 120 117 109 115 101 101 160 135 Slowest Speed 1200 | 160 160 145 160 116 180 101 101 880 1200 Overloaded Moves . | . . . . . . . . . . Propulsion Burnouts . | . . . . . . . . . . Robots Hopped . | . . . . . . . . . . Cave-ins Triggered . | . . . . . . . . . . Exploration Rate (%) 41 | 4 66 31 61 36 14 30 70 90 14 Regions Visited 9 Branch Regions 4 Pre-discovered Areas 1 | . . . . . . . 1 . . Known Exits Taken 4 | . . . . . 1 1 1 1 . Unknown Exits Taken 5 | 1 1 1 1 1 . . . . . Scrap Searched 6 | . . . . . . 1 . 5 . Spaces Dug 15 | . . . . . . . . 15 . Terrain Destroyed 312 | . 39 . . 20 82 . . 93 78 Melee . | . . . . . . . . . . Projectile . | . . . . . . . . . . AOE 312 | . 39 . . 20 82 . . 93 78 Terrain Rammed . | . . . . . . . . . . Walls Destroyed . | . . . . . . . . . . Machines Disabled . | . . . . . . . . . . Actions | -11 -10 -9 -9 -8 -7 -7 -7 -6 -6 --------- Run | Yrd Mat Mat Min Mat Fac Low Dat Pro Fac Total 5852 | 63 566 567 322 509 913 164 86 1878 784 Wait 823 | . 2 156 7 6 220 37 . 257 138 Move 4477 | 47 518 372 276 442 577 127 86 1474 558 Hop . | . . . . . . . . . . Pick Up 134 | 10 14 9 6 20 25 . . 40 10 Fast Attach 12 | . . . . . 2 . . 5 5 Attach 67 | 6 2 6 7 5 13 . . 18 10 Detach 4 | . . . . . 1 . . 2 1 Swap 51 | . 6 3 . 8 11 . . 15 8 Drop 68 | . 6 . . 17 16 . . 14 15 Fire 98 | . 17 21 26 11 6 . . 9 8 Melee 114 | . . . . . 42 . . 41 31 Ram . | . . . . . . . . . . Kick . | . . . . . . . . . . Crush 1 | . 1 . . . . . . . . Escape Stasis 3 | . . . . . . . . 3 . Rewire . | . . . . . . . . . . Trap . | . . . . . . . . . . Miscellaneous . | . . . . . . . . . . Route ------- -11/Scrapyard -10/Materials -9/Materials -9/Mines -8/Materials -7/Factory -7/Lower Caves -7/Data Miner -6/Proximity Caves -6/Factory (discovered 1 exit: Fac) History --------- Turn | Location | Event 4 | -11/Scrapyard | Discovered new exit (range 16) 79 | -11/Scrapyard | Entered Materials 318 | -10/Materials | Build established: Mutant 736 | -10/Materials | Discovered new exit (range 4) 881 | -10/Materials | Entered another Materials area 881 | -9/Materials | Evolved 2 slots: Utility x2 1218 | -9/Materials | Repaired Ion Engine 1246 | -9/Materials | Repaired Wheel 1524 | -9/Materials | Discovered new exit (range 16) 1564 | -9/Materials | Entered Mines 1681 | -9/Mines | Assembled infested the area 1772 | -9/Mines | Lost 3 parts (1n1u1w) 1839 | -9/Mines | Lost 4 parts (1p2u1w) 1876 | -9/Mines | Learned Materials stockpile data 1942 | -9/Mines | Received a Rocket Launcher from a helpful Derelict 1964 | -9/Mines | Discovered new exit (range 15) 1982 | -9/Mines | Entered Materials 1982 | -8/Materials | Evolved 2 slots: Propulsion x1, Utility x1 2480 | -8/Materials | Met 7R-MNS 2524 | -8/Materials | Discovered new exit (range 15) 2547 | -8/Materials | Entered Factory 2547 | -7/Factory | Evolved 2 slots: Propulsion x1, Utility x1 2644 | -7/Factory | Lost 6 parts (3n3u) 2709 | -7/Factory | Repaired Arm. Wheel 2743 | -7/Factory | Repaired Imp. Ion Engine 2800 | -7/Factory | Repaired Imp. Light Armor Plating 3599 | -7/Factory | Discovered new exit (range 6) 3604 | -7/Factory | Identified exit to Lower Caves 3616 | -7/Factory | Entered Lower Caves 3770 | -7/Lower Caves | A Derelict revealed a hidden shortcut to meet someone special 3781 | -7/Lower Caves | Identified exit to Data Miner 3782 | -7/Lower Caves | Entered Data Miner 3782 | -7/Data Miner | Discovered new exit (range 6) 3787 | -7/Data Miner | Identified exit to Proximity Caves 3802 | -7/Data Miner | Met Data Miner 3827 | -7/Data Miner | Learned location of Section 7 (-2) 3827 | -7/Data Miner | Acquired the access code to Warlord's prototype stash 3847 | -7/Data Miner | Received God Mode back door access code from Data Miner 3869 | -7/Data Miner | Entered Proximity Caves 4163 | -6/Proximity Caves | Build established: Hauler-Mutant 4264 | -6/Proximity Caves | Received a Behemoth hack from an annoying Tinkerer 4944 | -6/Proximity Caves | Learned location of 1 exit from Factory 5075 | -6/Proximity Caves | Attracted the attention of an 0b10 outpost 5090 | -6/Proximity Caves | Escorted by Enhanced Grunt 5128 | -6/Proximity Caves | Lost 5 parts (1p1n2u1w) 5174 | -6/Proximity Caves | Core integrity fell below 50% 5202 | -6/Proximity Caves | Lost 4 parts (1n2u1w) 5640 | -6/Proximity Caves | Build established: Gladiator 5924 | -6/Proximity Caves | Attracted the attention of an 0b10 checkpoint 5965 | -6/Proximity Caves | Lost 3 parts (2n1u) 6572 | -6/Proximity Caves | Found Prototype Launcher 6573 | -6/Proximity Caves | Identified Rocket Array 6682 | -6/Proximity Caves | Discovered new exit (range 15) 6710 | -6/Proximity Caves | Identified exit to Factory 6712 | -6/Proximity Caves | Entered Factory 6712 | -6/Factory | Evolved 2 slots: Utility x1, Weapon x1 6713 | -6/Factory | Identified exit to Factory 6769 | -6/Factory | Build established: Mutant 6801 | -6/Factory | Repaired Arm. Huge Wheel 7143 | -6/Factory | Build established: Gladiator 7676 | -6/Factory | Core integrity fell below 50% 7713 | -6/Factory | Core integrity fell below 20% 7747 | -6/Factory | Destroyed 10 combat bots 7751 | -6/Factory | Destroyed by H-66 Slayer with Heavy Assault Rifle Last Messages --------------- The unstable cave ceiling collapses. K-01 Serf crushed by falling debris. U-05 Engineer lays Concrete. The unstable cave ceiling collapses. U-05 Engineer builds a Wall. The unstable cave ceiling collapses. K-01 Serf collects debris. The unstable cave ceiling collapses. Imp. Carbon-fiber Leg crushed. K-01 Serf collects debris. U-05 Engineer lays Concrete. Acquired Carbon-fiber Leg. U-05 Engineer lays Concrete. K-01 Serf collects debris. Acquired 1 matter. Penetrated by Slug. Slug penetrates Earth. K-01 Serf collects debris. Penetrated by Slug. Prc. Rocket Launcher destroyed. Map ----- +----------------------------------------------------+ | ???????????????????????????????????# """ ### | | ???????????????????????????????????# | | ???????????????????????????????????# """ | | ???????????????????????????????????# """ | | ???????????????????????????????##### """ | | ???????????????????????????????? | | ?????????????????????????????????? %%% | | ???????????????????????????????????## %%% | | ???????????????????????#############" %%% | | ???????????????????????# " % | | ???????????????????????# " | | ???????????????????????# """ """ " | | ???????????????????????# """ """ | | ???????????????????????# """ """ " % | | ???????????????????????# " | | ??????????????????????## """ """ " | | ?????????????????????? # """ """ " | | ?????????????????????## """ """ + | | ???????????????????#?# # | | ???????????????????# ## # ###### | | ???????????????????# # *% # #????? | | ???????????????????#h % ######### ###????? | | ???????????????????# # [# ! # #??????? | | ???????????????????# # """"?# +??????? | | ???????????????????# # u """"?+ #??????? | | ???????????????????+ @ """"?? #??????? | | ???????????????????# """"??## #??????? | | ???????????????????# [ """?????????????? | | ???????????????????# """?????????????? | | ?????????????????? ????????????? | | ????????????????""" % ! #######???????????? | | ??????????????? """ ! %=R ????????????????? | | ????????????????""" #k ####???????????????? | | ???????????????? #??????????????????? | | ??????????????? """ # ## #??????????????????? | | ????????????????""" ## ? ###??????????????????? | | ?????????????????"" ?##? ##????????????????????? | | ????????????????? ????R#?????????????????????? | | ??????????????????###+???? ?????????????????????? | | ???????????????????? ????? ?????????????????????? | | ???????????????????? ????? ?????????????????????? | | ??????????????????????????? ?????????????????????? | | ?????????????????????????????????????????????????? | | ?????????????????????????????????????????????????? | | ?????????????????????????????????????????????????? | | ?????????????????????????????????????????????????? | | ?????????????????????????????????????????????????? | | ?????????????????????????????????????????????????? | | ?????????????????????????????????????????????????? | | ?????????????????????????????????????????????????? | +----------------------------------------------------+ Best States ------------- Heat Dissipation 51 Energy Generation 25 Energy Capacity 310 Matter Stores 375 Matter Capacity 400 Sight Range 16 Robot Scan Range 15 Terrain Scan Range 14 Terrain Scan Density 10 Armor Coverage 750 Propulsion Shielding 33 Evasion (%) 50 Targeting Accuracy 8 Melee Accuracy 12 Recoil Reduction 2 Offensive Hacking 10 Item Schematics ----------------- Imp. Transmission Jammer | -7/Factory | Hacked Combat Drone Bay | -7/Data Miner | Free Lgt. Regenerative Plating | -7/Data Miner | Free Biomechanical Wings | -7/Data Miner | Free Exp. Power Shielding | -7/Data Miner | Free Cmb. Gravmag System | -7/Data Miner | Free Antimatter Cannon | -7/Data Miner | Free Adv. Field Recycling Unit | -7/Data Miner | Free Wave Gun | -7/Data Miner | Free Imp. Focal Shield | -7/Data Miner | Free Robot Schematics ------------------ G-50 Soldier | -7/Data Miner | Free A-15 Conveyor | -7/Data Miner | Free E-15 Imp | -7/Data Miner | Free Y-54 Guardian | -7/Data Miner | Free L-41 Fighter | -7/Data Miner | Free Fabricated ------------ Nothing Alien Tech Used ----------------- None Achievements -------------- I Spy I Survived The Infestation I'm Back, Baby! Quick And Dirty Short-term Sacrifices Tank The Oracle Challenges ------------ None Game ------ Seed GammaSubdwellerFilter Manual? 0 Play Time 02:25:08 Cumulative 10.9 hours Start 2024.04.10 @ 20:07:00 End 2024.04.12 @ 01:45:52 Sessions 5 Manual Loads 0 Difficulty Rogue Special Mode None Game No. 13 Rogue 13 Adventurer 0 Explorer 0 Win Type - Total 0 Types 0/0/0/0/0/0/0/0/0 Lore% 18 Gallery% 16 Achievement% 16 Wizard Run 0 Options --------- Layout 1 ASCII 0 Keyboard 0 Movement Mouse Keybinds 0 Fullscreen 2 Font 24/Crisp Map View 50x35 Zoom Use 0% Tactical HUD 0 Map Filters NONE Filters NONE Steam 1 RUN: ed97c2ff-c1e4-442d-b72c-478c62918410